bitfinex/quotes_BTCUSD_20251117
["timestamp","ask_amount","ask_price","bid_price","bid_amount"]
[1763415597066,0.01801932,92091.0,92081.0,0.10859296]
[1763415597287,0.03046932,92091.0,92081.0,0.10859296]
[1763415597689,0.03046932,92091.0,92090.0,0.001]
[1763415597837,0.03046932,92091.0,92081.0,0.10859296]
[1763415598033,0.03046932,92091.0,92082.0,0.0108593]
[1763415598478,0.03046932,92091.0,92071.0,0.01112995]
[1763415598479,0.01636,92083.0,92071.0,0.00021514]
[1763415598687,0.02346,92090.0,92071.0,0.00021514]
[1763415598688,0.02881,92072.0,92071.0,0.00021514]
[1763415598853,0.03894418,92072.0,92071.0,0.00021514]
[1763415599062,0.06240418,92072.0,92071.0,0.00021514]
[1763415599456,0.06240418,92072.0,92038.0,0.00021514]
[1763415599663,0.03347418,92071.0,92039.0,0.01091481]
[1763415599888,0.9612685,92060.0,92039.0,0.01091481]
[1763415600277,0.01202,92059.0,92039.0,0.01091481]
[1763415601088,0.01202,92059.0,92051.0,0.10859296]
[1763415601491,0.9612685,92070.0,92051.0,0.10859296]
[1763415601694,0.01012237,92069.0,92052.0,0.0108933]
[1763415601955,0.9612685,92070.0,92052.0,0.0108933]
[1763415602158,0.01012236,92069.0,92052.0,0.0108933]
[1763415602357,0.01012324,92068.0,92039.0,0.01091481]
[1763415602544,0.9612685,92061.0,92040.0,0.00021514]
[1763415602750,0.9612685,92050.0,92040.0,0.00021514]
[1763415603156,0.01202,92049.0,92040.0,0.00021514]
[1763415603921,0.01202,92049.0,92041.0,0.01092476]
[1763415604165,0.01202,92061.0,92049.0,0.00019713]
[1763415604723,0.01202,92061.0,92051.0,0.10859296]
[1763415604964,0.0277535,92072.0,92052.0,0.10859296]
[1763415605207,0.9612685,92070.0,92053.0,0.01303596]
[1763415605336,0.02022979,92069.0,92053.0,0.01303596]
[1763415605536,0.02022979,92068.0,92054.0,0.00021514]
[1763415605772,0.02022979,92067.0,92054.0,0.00021514]
[1763415605970,0.02769,92055.0,92054.0,0.00021514]
[1763415606298,0.02022979,92055.0,92054.0,0.00021514]
[1763415606482,0.02022979,92055.0,92054.0,0.00055514]
[1763415607631,0.02022979,92055.0,92054.0,0.00089514]
[1763415608212,0.02022979,92055.0,92054.0,0.00021514]
[1763415608213,0.03589979,92055.0,92054.0,0.00021514]
[1763415608527,0.03589979,92055.0,92049.0,0.00041227]
[1763415608723,0.02022979,92054.0,92049.0,0.00041227]
[1763415608941,0.02022979,92053.0,92050.0,0.10859296]
[1763415609099,0.02022979,92052.0,92050.0,0.10859296]
[1763415609300,0.02022979,92051.0,92049.0,0.00041227]
[1763415609535,0.02022979,92050.0,92049.0,0.00041227]
[1763415610340,0.05923979,92050.0,92049.0,0.00041227]
[1763415610938,0.05923979,92050.0,92049.0,0.00141227]
[1763415611342,0.05909369,92050.0,92049.0,0.00141227]
[1763415611745,0.05909369,92050.0,92049.0,0.00041227]
[1763415611945,0.03901,92050.0,92049.0,0.00041227]
[1763415612367,0.04515935,92050.0,92049.0,0.00041227]
[1763415615636,0.05543874,92063.0,92049.0,0.00041227]
[1763415615637,0.01202,92058.0,92049.0,0.00041227]
[1763415616472,0.01202,92063.0,92050.0,0.10859296]
[1763415616675,0.01202,92063.0,92051.0,0.01090052]
[1763415616884,0.01202,92063.0,92049.0,0.00041227]
[1763415616885,0.01567,92051.0,92049.0,0.00041227]
[1763415617098,0.76358874,92060.0,92049.0,0.00041227]
[1763415617099,0.01567,92050.0,92049.0,0.00041227]
[1763415617519,0.02334,92059.0,92049.0,0.00041227]
[1763415617733,0.01567,92050.0,92049.0,0.00041227]
[1763415618146,0.03944,92050.0,92049.0,0.00041227]
[1763415618349,0.02539863,92058.0,92049.0,0.00041227]
[1763415618566,0.01202,92063.0,92049.0,0.00041227]
[1763415618780,0.76358874,92060.0,92058.0,0.00022215]
[1763415618979,0.03579,92063.0,92058.0,0.00022215]
[1763415619182,0.01566,92059.0,92058.0,0.00022215]
[1763415619571,0.03943,92059.0,92058.0,0.00022215]
[1763415619993,0.07105302,92059.0,92058.0,0.00022215]
[1763415620518,0.04565439,92059.0,92058.0,0.00043729]
[1763415621570,0.02188439,92059.0,92058.0,0.00043729]
[1763415621770,0.01566,92059.0,92058.0,0.00043729]
[1763415621974,0.03943,92059.0,92058.0,0.00043729]
[1763415622234,0.06464588,92059.0,92058.0,0.00043729]
[1763415622614,0.04087588,92059.0,92058.0,0.00043729]
[1763415622943,0.06464588,92059.0,92058.0,0.00043729]
[1763415623484,0.08486677,92059.0,92058.0,0.00043729]
[1763415624492,0.02022089,92059.0,92058.0,0.00043729]
[1763415624896,0.02022089,92059.0,92058.0,0.00147729]
[1763415625216,0.01214,92089.0,92077.0,0.10859296]
[1763415625420,0.02023967,92088.0,92063.0,0.10859296]
[1763415625792,0.02023967,92087.0,92063.0,0.10859296]
[1763415625996,0.76358874,92080.0,92063.0,0.10859296]
[1763415626204,0.02023967,92079.0,92063.0,0.10859296]
[1763415626374,0.02023967,92078.0,92077.0,0.10859296]
[1763415626609,0.01214,92089.0,92078.0,0.00021514]
[1763415626811,0.01410932,92091.0,92078.0,0.01324756]
[1763415626812,0.02024452,92088.0,92078.0,0.01324756]
[1763415626984,0.00165932,92091.0,92079.0,0.01355228]
[1763415627224,0.6291786,92100.0,92079.0,0.01303228]
[1763415627401,0.6291786,92100.0,92080.0,0.01326997]
[1763415627609,0.6291786,92100.0,92081.0,0.013032]
[1763415628164,0.6291786,92100.0,92080.0,0.01326997]
[1763415629423,0.62899347,92100.0,92080.0,0.01326997]
[1763415629626,0.02377,92101.0,92081.0,0.00021514]
[1763415629830,0.76458874,92100.0,92082.0,0.01220781]
[1763415630631,0.02377,92101.0,92082.0,0.01220781]
[1763415630921,0.76358874,92100.0,92082.0,0.01220781]
[1763415632279,0.001,92101.0,92083.0,0.01303172]
[1763415632459,0.03663174,92104.0,92082.0,0.01220781]
[1763415632659,2.0,92103.0,92083.0,0.01215359]
[1763415632889,0.001,92100.0,92083.0,0.01215359]
[1763415633088,0.76458874,92100.0,92083.0,0.01215359]
[1763415633271,0.76358874,92100.0,92083.0,0.01215359]
[1763415634179,0.76458874,92100.0,92083.0,0.01215359]
[1763415634382,0.001,92100.0,92084.0,0.01209617]
[1763415635304,0.001,92100.0,92081.0,0.00021514]
[1763415635305,0.02741,92085.0,92081.0,0.00021514]
[1763415635693,0.02741,92085.0,92082.0,0.10859296]
[1763415636051,0.02276,92102.0,92084.0,0.00052]
[1763415636175,0.02276,92102.0,92085.0,0.0252459]
[1763415636176,0.001,92100.0,92085.0,0.0252459]
[1763415636617,0.01197,92099.0,92085.0,0.0252459]
[1763415637868,0.02276,92098.0,92073.0,0.00052]
[1763415638001,0.02276,92098.0,92079.0,0.10859296]
[1763415638458,0.02276,92098.0,92080.0,0.10859296]
[1763415638639,0.01197,92099.0,92081.0,0.00021514]
[1763415639244,0.02018994,92098.0,92081.0,0.00021514]
[1763415639479,0.02018994,92097.0,92082.0,0.01093281]
[1763415639656,0.02018994,92096.0,92082.0,0.01093281]
[1763415639884,0.02018994,92095.0,92082.0,0.01093281]
[1763415640085,0.02276,92098.0,92081.0,0.00021514]
[1763415640265,0.02018753,92097.0,92081.0,0.00021514]
[1763415640417,0.02018753,92096.0,92081.0,0.00021514]
[1763415640625,0.02018753,92095.0,92081.0,0.00021514]
[1763415640819,0.02276,92098.0,92081.0,0.00021514]
[1763415641055,0.02018766,92097.0,92081.0,0.00021514]
[1763415641258,0.02018766,92096.0,92082.0,0.10859296]
[1763415641458,0.02018766,92095.0,92082.0,0.11947377]
[1763415641621,0.02276,92098.0,92082.0,0.01088081]
[1763415641817,0.04294539,92097.0,92081.0,0.00021514]
[1763415642022,0.02018539,92096.0,92081.0,0.00021514]
[1763415642310,0.76358874,92091.0,92081.0,0.00021514]
[1763415643553,0.01544,92082.0,92081.0,0.00021514]
[1763415643970,0.0382,92082.0,92081.0,0.00021514]
[1763415644536,0.06359917,92082.0,92081.0,0.00021514]
[1763415644757,0.04083917,92082.0,92065.0,0.00021514]
[1763415644961,0.01544,92082.0,92066.0,0.02568399]
[1763415645363,0.02276,92087.0,92066.0,0.02568399]
[1763415645637,0.02021864,92086.0,92066.0,0.02568399]
[1763415645839,0.02276,92087.0,92066.0,0.02568399]
[1763415646061,0.02021668,92086.0,92066.0,0.02568399]
[1763415646269,0.02276,92087.0,92066.0,0.02568399]
[1763415646470,0.02022173,92086.0,92067.0,0.02882438]
[1763415646660,0.00544522,92090.0,92067.0,0.02882438]
[1763415646866,0.02022246,92089.0,92067.0,0.02882438]
[1763415646986,0.02022246,92088.0,92067.0,0.02882438]
[1763415647192,0.02022246,92087.0,92068.0,0.02856642]
[1763415647437,0.0202274,92086.0,92068.0,0.05040642]
[1763415647658,0.02276,92090.0,92069.0,0.00021514]
[1763415647975,0.02022632,92089.0,92069.0,0.00021514]
[1763415648175,0.02022632,92088.0,92069.0,0.00021514]
[1763415648442,0.02276,92090.0,92069.0,0.00021514]
[1763415648443,0.02022632,92087.0,92070.0,0.02859263]
[1763415648746,0.02022632,92086.0,92070.0,0.02859263]
[1763415648967,0.02276,92090.0,92070.0,0.02859263]
[1763415649168,0.02023372,92089.0,92070.0,0.02859263]
[1763415649469,0.02023372,92088.0,92070.0,0.02859263]
[1763415649658,0.02023372,92087.0,92071.0,0.01772278]
[1763415649802,0.02023372,92086.0,92071.0,0.01772278]
[1763415650003,0.02276,92090.0,92071.0,0.01772278]
[1763415650353,0.02024129,92089.0,92071.0,0.01772278]
[1763415650558,0.02024129,92088.0,92071.0,0.01772278]
[1763415650768,0.02024129,92087.0,92072.0,0.00021514]
[1763415651114,0.02024129,92086.0,92072.0,0.00021514]
[1763415651307,0.02024129,92085.0,92072.0,0.00021514]
[1763415651507,0.02024129,92084.0,92072.0,0.00021514]
[1763415651714,0.02024129,92083.0,92072.0,0.00021514]
[1763415651914,0.02024129,92082.0,92072.0,0.00021514]
[1763415652113,0.27276,92093.0,92072.0,0.00021514]
[1763415652257,0.02026293,92092.0,92072.0,0.00021514]
[1763415652465,0.76358874,92090.0,92072.0,0.00021514]
[1763415652663,0.02026293,92089.0,92072.0,0.00021514]
[1763415652996,0.02026293,92089.0,92077.0,0.10859296]
[1763415653398,0.02026293,92089.0,92072.0,0.00021514]
[1763415653618,0.02026293,92089.0,92077.0,0.10859296]
[1763415654348,0.02026293,92089.0,92077.0,0.11945226]
[1763415654687,0.02026293,92089.0,92078.0,0.01303242]
[1763415656411,0.02026293,92089.0,92088.0,0.00052]
[1763415656619,0.02026293,92092.0,92088.0,0.00052]
[1763415656788,0.02032491,92092.0,92091.0,0.10859296]
[1763415656937,0.02032491,92092.0,92091.0,0.12002426]
[1763415657141,0.02032491,92092.0,92091.0,0.12054426]
[1763415657597,0.0667285,92093.0,92091.0,0.12054426]
[1763415657799,0.0667285,92093.0,92092.0,0.00052]
[1763415657951,0.0667285,92093.0,92092.0,0.00104]
[1763415658359,0.0667285,92093.0,92092.0,0.01407044]
[1763415658592,0.00023112,92099.0,92092.0,0.01407044]
[1763415658808,0.00023112,92099.0,92098.0,0.00052]
[1763415659376,0.00023112,92099.0,92098.0,0.00104]
[1763415661298,0.00023112,92099.0,92098.0,0.00152]
[1763415662098,0.00023112,92099.0,92092.0,0.1479]
[1763415662390,0.00023112,92099.0,92098.0,0.001]
[1763415662774,0.00023112,92099.0,92091.0,0.10859296]
[1763415662975,0.00023112,92099.0,92098.0,0.001]
[1763415664159,0.00023112,92099.0,92092.0,0.0257013]
[1763415665032,0.00023112,92099.0,92098.0,0.001]
[1763415665242,0.00023112,92099.0,92092.0,0.0257013]
[1763415665668,0.00023112,92099.0,92092.0,0.0267013]
[1763415666338,0.00023112,92099.0,92092.0,0.001]
[1763415666512,0.01651,92093.0,92092.0,0.001]
[1763415667070,0.04089,92093.0,92092.0,0.001]
[1763415667276,0.04089,92093.0,92064.0,0.00052]
[1763415667478,0.67127581,92088.0,92064.0,0.00052]
[1763415667677,0.67127581,92088.0,92079.0,0.01088081]
[1763415667885,0.01185,92087.0,92064.0,0.00052]
[1763415668738,0.02026663,92086.0,92064.0,0.00052]
[1763415668924,0.02026663,92085.0,92064.0,0.00052]
[1763415669130,0.02026663,92084.0,92064.0,0.00052]
[1763415669359,0.02026663,92083.0,92078.0,0.01109595]
[1763415669494,0.01185,92087.0,92078.0,0.01109595]
[1763415669695,0.02026222,92086.0,92078.0,0.01109595]
[1763415669903,0.02026222,92086.0,92078.0,0.00021514]
[1763415669904,0.01651,92079.0,92078.0,0.00021514]
[1763415670503,0.02488933,92085.0,92078.0,0.00021514]
[1763415670709,0.02026016,92084.0,92078.0,0.00021514]
[1763415670905,0.02026016,92083.0,92078.0,0.00021514]
[1763415671187,0.01651,92079.0,92078.0,0.00121514]
[1763415671316,0.02488933,92085.0,92078.0,0.00021514]
[1763415671517,0.02026147,92084.0,92078.0,0.00021514]
[1763415671743,0.02026147,92083.0,92068.0,0.00021514]
[1763415672026,0.02026147,92082.0,92069.0,0.01093281]
[1763415672226,0.02026147,92081.0,92069.0,0.01093281]
[1763415672428,0.02488933,92085.0,92069.0,0.01093281]
[1763415672637,0.04464107,92084.0,92068.0,0.00034689]
[1763415672851,0.02026107,92083.0,92068.0,0.00034689]
[1763415673163,0.02026107,92082.0,92068.0,0.00034689]
[1763415673364,0.02488933,92085.0,92068.0,0.00034689]
[1763415673528,0.02026177,92084.0,92069.0,0.01094599]
[1763415673755,0.02026177,92083.0,92069.0,0.01094599]
[1763415673957,0.02026177,92082.0,92069.0,0.01094599]
[1763415674295,0.95921742,92080.0,92069.0,0.01194599]
[1763415674476,0.95921742,92080.0,92069.0,0.01094599]
[1763415674674,0.95921742,92080.0,92070.0,0.01220372]
[1763415675057,0.95921742,92080.0,92070.0,0.00021514]
[1763415676541,0.95921742,92080.0,92077.0,0.10859296]
[1763415676749,0.02488933,92085.0,92077.0,0.10743782]
[1763415676955,0.02488933,92085.0,92077.0,0.08243782]
[1763415677160,0.00569671,92079.0,92077.0,0.08243782]
[1763415677736,0.00569671,92079.0,92078.0,0.00824378]
[1763415677937,0.00569671,92079.0,92077.0,0.08243782]
[1763415678323,0.00569671,92079.0,92077.0,0.08343782]
[1763415678659,0.00569671,92079.0,92077.0,0.08243782]
[1763415678860,0.00569671,92079.0,92078.0,0.001]
[1763415679093,0.00569671,92079.0,92078.0,0.00152]
[1763415679305,0.03840554,92079.0,92078.0,0.00152]
[1763415680061,0.03840554,92079.0,92078.0,0.00052]
[1763415680842,0.03840554,92079.0,92078.0,0.00152]
[1763415681518,0.03840554,92079.0,92078.0,0.00204]
[1763415681519,0.00569671,92079.0,92078.0,0.00204]
[1763415681746,0.03270219,92095.0,92089.0,0.10859296]
[1763415681943,0.51181,92119.0,92090.0,0.0108593]
[1763415682214,0.03269991,92104.0,92098.0,0.00052]
[1763415682374,0.03269991,92104.0,92091.0,0.1479]
[1763415682578,0.95921742,92101.0,92091.0,0.1479]
[1763415682796,0.00592688,92099.0,92091.0,0.1479]
[1763415683431,0.00592688,92099.0,92091.0,0.1735493]
[1763415684613,0.00592688,92099.0,92098.0,0.00052]
[1763415685164,0.00592688,92099.0,92098.0,0.00104]
[1763415685516,0.00592688,92099.0,92098.0,0.00052]
[1763415685984,0.00592688,92099.0,92090.0,0.1479]
[1763415686520,0.00592688,92099.0,92098.0,0.00052]
[1763415687002,0.00592688,92099.0,92098.0,0.00204]
[1763415687735,0.00592688,92099.0,92098.0,0.00104]
[1763415688145,0.00592688,92099.0,92098.0,0.00204]
[1763415693309,0.00592688,92099.0,92098.0,0.00152]
[1763415694465,0.00592688,92099.0,92098.0,0.00104]
[1763415694736,0.00592688,92099.0,92098.0,0.14994]
[1763415694932,0.00592688,92099.0,92098.0,0.1489]
[1763415695135,0.00592688,92099.0,92098.0,0.001]
[1763415695387,0.00592688,92099.0,92098.0,0.00152]
[1763415695560,0.00592688,92099.0,92098.0,0.00204]
[1763415695943,0.00592688,92099.0,92098.0,0.00104]
[1763415696139,0.00448302,92099.0,92098.0,0.00104]
[1763415696351,0.00448302,92099.0,92098.0,0.00204]
[1763415697530,0.0004,92120.0,92098.0,0.00204]
[1763415697531,0.0004,92120.0,92118.0,0.10859296]
[1763415697742,0.00053169,92120.0,92119.0,0.02492592]
[1763415697913,0.0004,92130.0,92119.0,0.02492592]
[1763415698112,0.0004,92130.0,92120.0,0.95921742]
[1763415698317,0.0004,92130.0,92121.0,0.01302634]
[1763415698552,0.0004,92130.0,92122.0,0.01324786]
[1763415698822,0.0004,92130.0,92123.0,0.01302606]
[1763415699404,0.0004,92130.0,92122.0,0.01324786]
[1763415700492,0.0004,92130.0,92122.0,0.01424786]
[1763415701094,0.0004,92130.0,92122.0,0.001]
[1763415701303,0.01214,92130.0,92122.0,0.001]
[1763415702131,0.01637,92123.0,92122.0,0.001]
[1763415702334,0.01637,92123.0,92104.0,0.10859296]
[1763415702530,0.03484,92130.0,92104.0,0.10859296]
[1763415702531,0.00465567,92124.0,92118.0,0.10859296]
[1763415702717,0.00465567,92124.0,92119.0,0.0108593]
[1763415702915,0.00465567,92124.0,92104.0,0.10872465]
[1763415703139,0.00057818,92119.0,92104.0,0.10872465]
[1763415703349,0.02488916,92123.0,92118.0,0.10859296]
[1763415703551,0.02811,92119.0,92104.0,0.10872465]
[1763415703772,0.01174,92119.0,92104.0,0.10872465]
[1763415703974,0.02488916,92123.0,92118.0,0.10859296]
[1763415704201,0.02488916,92123.0,92105.0,0.01087247]
[1763415704395,0.02488916,92123.0,92118.0,0.10859296]
[1763415704972,0.0004,92130.0,92119.0,0.01302662]
[1763415705564,0.0004,92130.0,92118.0,0.10859296]
[1763415705764,0.0004,92130.0,92119.0,0.02388592]
[1763415706013,0.01,92123.0,92119.0,0.0108593]
[1763415706446,0.01,92123.0,92120.0,0.01302648]
[1763415706558,0.01,92123.0,92119.0,0.0108593]
[1763415706798,0.0004,92170.0,92139.0,0.10859296]
[1763415707106,0.0257013,92151.0,92139.0,0.11945226]
[1763415707328,0.00568914,92169.0,92140.0,0.01302365]
[1763415707534,0.0257013,92152.0,92140.0,0.01302365]
[1763415707732,0.0257013,92152.0,92141.0,0.01302351]
[1763415707896,0.00083879,92150.0,92141.0,0.01302351]
[1763415708107,0.00083879,92150.0,92139.0,0.11945226]
[1763415708346,0.00083879,92150.0,92140.0,0.01194523]
[1763415708924,0.001,92140.0,92139.0,0.10859296]
[1763415709101,0.00083879,92150.0,92139.0,0.10859296]
[1763415709243,0.00118502,92140.0,92139.0,0.10859296]
[1763415709464,0.00118502,92140.0,92139.0,0.10959296]
[1763415709690,0.00118502,92140.0,92139.0,0.11955226]
[1763415710108,0.17236062,92169.0,92139.0,0.12055226]
[1763415710336,0.17236062,92169.0,92153.0,0.10859296]
[1763415710337,0.0202463,92168.0,92153.0,0.10859296]
[1763415710507,0.0202463,92167.0,92153.0,0.10859296]
[1763415710721,0.0202463,92166.0,92153.0,0.10859296]
[1763415710926,0.0202463,92166.0,92154.0,0.0108593]
[1763415711134,0.0202463,92166.0,92139.0,0.001]
[1763415711135,0.01637,92154.0,92139.0,0.001]
[1763415711443,0.01637,92154.0,92115.0,0.01134]
[1763415711444,0.02811,92140.0,92115.0,0.01134]
[1763415711708,0.0202463,92139.0,92120.0,0.01307923]
[1763415712227,0.0429463,92139.0,92120.0,0.01307923]
[1763415712426,0.0202463,92138.0,92122.0,0.10859296]
[1763415712634,0.0202463,92138.0,92123.0,0.01302606]
[1763415712635,0.07563998,92138.0,92123.0,0.01302606]
[1763415712857,0.0202463,92137.0,92123.0,0.01302606]
[1763415713055,0.0202463,92137.0,92124.0,0.0135137]
[1763415713264,0.0202463,92137.0,92125.0,0.01302578]
[1763415713652,0.00765,92148.0,92126.0,0.01186]
[1763415713854,0.03269061,92136.0,92127.0,0.01302549]
[1763415714587,0.80948149,92150.0,92135.0,0.02576]
[1763415714749,0.80948149,92150.0,92139.0,0.01505]
[1763415714952,0.02341,92146.0,92135.0,0.01071]
[1763415715684,0.02341,92146.0,92136.0,0.10859296]
[1763415715894,0.02341,92146.0,92137.0,0.02495438]
[1763415716095,0.02341,92146.0,92137.0,0.04836438]
[1763415716299,0.02341,92146.0,92145.0,0.01505]
[1763415716876,0.02341,92146.0,92139.0,0.0130238]
[1763415717129,0.02341,92146.0,92140.0,0.10859296]
[1763415717429,0.02341,92146.0,92145.0,0.01505]
[1763415717798,0.02341,92146.0,92145.0,0.03846]
[1763415718633,0.02341,92146.0,92141.0,0.01302351]
[1763415718827,0.02341,92146.0,92128.0,0.02341]
[1763415719075,0.02341,92146.0,92136.0,0.10859296]
[1763415720146,0.02341,92146.0,92136.0,0.12052326]
[1763415720346,0.02341,92146.0,92136.0,0.10859296]
[1763415720555,0.02341,92146.0,92128.0,0.02341]
[1763415720762,0.02341,92146.0,92136.0,0.10859296]
[1763415722163,0.02341,92146.0,92129.0,0.17043]
[1763415722412,0.02341,92146.0,92136.0,0.10859296]
[1763415722627,0.02341,92146.0,92137.0,0.0108593]
[1763415722844,0.02341,92146.0,92129.0,0.1479]
[1763415723232,0.02341,92146.0,92136.0,0.10859296]
[1763415724599,0.02341,92146.0,92145.0,0.02821]
[1763415724824,0.00023104,92148.0,92145.0,0.02821]
[1763415725021,0.00023104,92148.0,92147.0,0.01643]
[1763415725224,0.00023104,92148.0,92147.0,0.05061895]
[1763415725427,0.00023104,92148.0,92147.0,0.07314895]
[1763415726426,0.00023104,92148.0,92147.0,0.20802628]
[1763415726899,1.04e-06,92148.0,92147.0,0.53102628]
[1763415727046,0.0004,92170.0,92147.0,0.53102628]
[1763415727047,0.0004,92170.0,92149.0,0.02184]
[1763415727400,0.0004,92170.0,92169.0,0.13403296]
[1763415727603,0.0004,92170.0,92169.0,0.15656296]
[1763415727604,0.02070405,92170.0,92169.0,0.15656296]
[1763415728335,0.0004,92170.0,92169.0,0.15656296]
[1763415728704,0.00053161,92170.0,92169.0,0.15656296]
[1763415728921,0.00053161,92170.0,92169.0,0.15756296]
[1763415729229,0.00053161,92170.0,92169.0,0.17331926]
[1763415730384,0.00053161,92170.0,92169.0,0.0647263]
[1763415730588,0.00053161,92170.0,92169.0,0.04897]
[1763415730952,0.00053161,92170.0,92169.0,0.04797]
[1763415731487,0.00053161,92170.0,92169.0,0.04897]
[1763415731690,0.00053161,92170.0,92169.0,0.04797]
[1763415731894,0.00053161,92170.0,92169.0,0.04897]
[1763415732981,0.00116712,92170.0,92169.0,0.04897]
[1763415734193,0.0004,92190.0,92182.0,0.10859296]
[1763415734400,0.02025785,92189.0,92183.0,0.04640688]
[1763415734610,0.02025785,92188.0,92183.0,0.04640688]
[1763415734817,0.02025785,92187.0,92184.0,0.02253]
[1763415734990,0.0004,92190.0,92189.0,0.01643]
[1763415735195,0.0004,92190.0,92182.0,0.12037296]
[1763415735196,0.0004,92190.0,92182.0,0.01178]
[1763415735350,0.02026306,92189.0,92182.0,0.01178]
[1763415735934,0.02026306,92189.0,92183.0,0.001]
[1763415736068,0.02026306,92189.0,92185.0,0.10859296]
[1763415736269,0.02026306,92189.0,92186.0,0.0121373]
[1763415736863,0.02026306,92189.0,92188.0,0.01643]
[1763415737079,0.0004,92190.0,92188.0,0.01643]
[1763415737294,0.0004,92190.0,92189.0,0.03896]
[1763415738773,0.0004,92190.0,92189.0,0.03996]
[1763415738919,0.0004,92190.0,92189.0,0.05720703]
[1763415741443,0.0004,92190.0,92189.0,0.07022376]
[1763415742064,0.0004,92190.0,92189.0,0.20510703]
[1763415743270,0.0004,92190.0,92189.0,0.20410703]
[1763415743587,0.0004,92190.0,92189.0,0.21812376]
[1763415743810,0.0004,92190.0,92189.0,0.20510703]
[1763415744369,0.0004,92200.0,92189.0,0.20510703]
[1763415744370,0.0004,92200.0,92190.0,0.38641872]
[1763415744555,0.00053154,92200.0,92199.0,0.13694296]
[1763415744762,0.00053154,92200.0,92199.0,0.14995828]
[1763415744973,0.00053154,92200.0,92199.0,0.17370828]
[1763415745341,0.00053154,92200.0,92199.0,0.16069296]
[1763415747250,0.00139768,92200.0,92199.0,0.16069296]
[1763415747463,0.0004,92220.0,92199.0,0.18977758]
[1763415747633,0.0004,92220.0,92209.0,0.01616]
[1763415748188,0.0004,92220.0,92209.0,0.03991]
[1763415748378,0.0004,92240.0,92209.0,0.03991]
[1763415748379,0.0004,92240.0,92239.0,0.10859296]
[1763415748574,0.00053151,92240.0,92239.0,0.13776264]
[1763415748728,0.00053151,92240.0,92239.0,0.1763279]
[1763415748933,0.00053151,92240.0,92239.0,0.16331822]
[1763415751072,0.00053151,92240.0,92239.0,0.01616]
[1763415751273,0.03716867,92240.0,92225.0,0.10859296]
[1763415751476,0.02017716,92239.0,92225.0,0.10859296]
[1763415751681,0.36742716,92239.0,92219.0,0.01001]
[1763415751925,0.36742716,92239.0,92204.0,0.01039]
[1763415751926,0.01174,92226.0,92204.0,0.01039]
[1763415752233,0.02017716,92225.0,92214.0,0.10859296]
[1763415752378,0.01174,92226.0,92214.0,0.10859296]
[1763415752379,0.02017716,92224.0,92214.0,0.10859296]
[1763415752612,0.02017716,92223.0,92204.0,0.05110723]
[1763415752826,0.01174,92226.0,92204.0,0.05110723]
[1763415752827,0.02017716,92222.0,92205.0,0.02363]
[1763415753044,0.02017716,92221.0,92205.0,0.02363]
[1763415753257,0.00028858,92210.0,92205.0,0.02363]
[1763415753453,0.01174,92226.0,92205.0,0.02363]
[1763415753606,0.01174,92226.0,92204.0,0.01039]
[1763415753607,0.02020058,92225.0,92204.0,0.01039]
[1763415753808,0.03599,92226.0,92204.0,0.01039]
[1763415753809,0.00023085,92208.0,92204.0,0.01039]
[1763415754009,0.02020058,92207.0,92204.0,0.01039]
[1763415754212,0.02020058,92206.0,92204.0,0.01039]
[1763415754418,0.02020058,92205.0,92204.0,0.01039]
[1763415754623,0.02020058,92207.0,92204.0,0.01039]
[1763415754829,0.02020058,92207.0,92204.0,0.04957]
[1763415755290,0.02020058,92207.0,92206.0,0.01555]
[1763415755709,0.02020058,92207.0,92206.0,0.03918]
[1763415757182,0.02020058,92207.0,92199.0,0.01219]
[1763415757384,0.03666058,92207.0,92199.0,0.01219]
[1763415757593,0.02020058,92206.0,92199.0,0.01219]
[1763415757797,0.01646,92207.0,92199.0,0.01219]
[1763415757798,0.02020058,92205.0,92199.0,0.01219]
[1763415758004,0.02020058,92204.0,92199.0,0.01219]
[1763415758209,0.02020058,92203.0,92199.0,0.01219]
[1763415758383,0.02020058,92202.0,92199.0,0.01219]
[1763415758637,2.0,92239.0,92214.0,0.10859296]
[1763415758838,0.00013154,92239.0,92222.0,0.01161]
[1763415759038,0.00013154,92239.0,92228.0,0.10859296]
[1763415759241,0.00013154,92239.0,92238.0,0.01161]
[1763415759803,0.00013154,92239.0,92238.0,0.02716]
[1763415760009,0.00013154,92239.0,92234.0,0.01161]
[1763415760210,0.00013154,92239.0,92222.0,0.01161]
[1763415760413,0.76118127,92232.0,92222.0,0.01161]
[1763415760617,0.34738154,92239.0,92222.0,0.01161]
[1763415760960,0.01174,92238.0,92222.0,0.01161]
[1763415762360,0.01274,92238.0,92222.0,0.01161]
[1763415762784,0.001,92238.0,92228.0,0.10859296]
[1763415762990,0.001,92238.0,92229.0,0.0143833]
[1763415763635,0.00013154,92239.0,92229.0,0.0143833]
[1763415763843,0.001,92238.0,92229.0,0.01301109]
[1763415765219,0.00013154,92239.0,92229.0,0.01301109]
[1763415765417,0.001,92238.0,92229.0,0.01301109]
[1763415765737,0.00063486,92230.0,92229.0,0.01301109]
[1763415766095,0.323,92247.0,92229.0,0.0442455]
[1763415766293,2.0,92243.0,92229.0,0.0678755]
[1763415766527,0.33315203,92242.0,92229.0,0.0678755]
[1763415766730,0.323,92242.0,92229.0,0.05486441]
[1763415766931,0.01015688,92241.0,92229.0,0.03918]
[1763415767136,0.01015688,92240.0,92229.0,0.03918]
[1763415767359,0.323,92242.0,92229.0,0.03918]
[1763415767555,0.01015829,92241.0,92229.0,0.03918]
[1763415767748,0.01015829,92240.0,92229.0,0.03918]
[1763415767948,0.32343828,92247.0,92229.0,0.03918]
[1763415768150,0.323,92245.0,92229.0,0.03918]
[1763415768352,0.01015819,92244.0,92229.0,0.03918]
[1763415768508,0.01015819,92243.0,92229.0,0.03918]
[1763415768721,0.01015819,92242.0,92229.0,0.03918]
[1763415768928,0.01015819,92241.0,92229.0,0.01555]
[1763415769132,0.01174,92230.0,92222.0,0.01161]
[1763415769978,0.00023076,92238.0,92229.0,0.01555]
[1763415770186,0.00023076,92238.0,92231.0,0.01555]
[1763415770398,0.00023076,92238.0,92237.0,0.01161]
[1763415770607,0.02054476,92238.0,92237.0,0.01161]
[1763415772161,0.02054476,92238.0,92237.0,0.02716]
[1763415773287,0.02054476,92238.0,92237.0,0.05079]
[1763415773402,0.02054476,92238.0,92237.0,0.05717004]
[1763415774113,0.02054476,92238.0,92237.0,0.05079]
[1763415774907,0.02054476,92238.0,92237.0,0.05179]
[1763415775121,0.02054476,92238.0,92237.0,0.001]
[1763415776001,0.02054476,92238.0,92232.0,0.01161]
[1763415776222,0.020314,92237.0,92232.0,0.01161]